bitfinex/quotes_BTCUSD_20240811
["timestamp","ask_amount","ask_price","bid_price","bid_amount"]
[1723370325316,0.343244,61181.0,61180.0,0.15033993]
[1723370325716,0.353244,61181.0,61180.0,0.15033993]
[1723370325970,0.364244,61181.0,61180.0,0.1412]
[1723370326144,0.582073,61181.0,61180.0,0.1412]
[1723370326514,0.594073,61181.0,61180.0,0.1412]
[1723370326848,0.572073,61181.0,61180.0,0.1412]
[1723370327217,0.368244,61181.0,61180.0,0.1412]
[1723370327878,0.586073,61181.0,61180.0,0.1412]
[1723370328088,0.369244,61181.0,61180.0,0.1412]
[1723370328277,0.369244,61181.0,61180.0,0.15033993]
[1723370328540,0.355244,61181.0,61180.0,0.15033993]
[1723370328718,0.343244,61181.0,61180.0,0.15033993]
[1723370328927,0.128415,61181.0,61180.0,0.1412]
[1723370329135,0.343244,61181.0,61180.0,0.1412]
[1723370329339,0.343244,61181.0,61180.0,0.15033993]
[1723370329550,0.357244,61181.0,61180.0,0.15033993]
[1723370329754,0.128415,61181.0,61180.0,0.15033993]
[1723370329955,0.357244,61181.0,61180.0,0.15033993]
[1723370330089,0.371244,61181.0,61180.0,0.15033993]
[1723370330501,0.357244,61181.0,61180.0,0.15033993]
[1723370330918,0.370244,61181.0,61180.0,0.15033993]
[1723370331337,0.599073,61181.0,61180.0,0.15033993]
[1723370331579,0.572073,61181.0,61180.0,0.15033993]
[1723370331788,0.572073,61181.0,61180.0,0.1412]
[1723370332029,0.584073,61181.0,61180.0,0.1412]
[1723370332234,0.343244,61181.0,61180.0,0.1421152]
[1723370332436,0.354244,61181.0,61180.0,0.1421152]
[1723370332588,0.367244,61181.0,61180.0,0.15125513]
[1723370332979,0.354244,61181.0,61180.0,0.15125513]
[1723370333331,0.368244,61181.0,61180.0,0.15125513]
[1723370333716,0.368244,61181.0,61180.0,0.1421152]
[1723370333916,0.357244,61181.0,61180.0,0.15125513]
[1723370334298,0.370244,61181.0,61180.0,0.15125513]
[1723370334519,0.027,61181.0,61180.0,0.15125513]
[1723370334733,0.014,61181.0,61180.0,0.15125513]
[1723370335370,0.027,61181.0,61180.0,0.15125513]
[1723370335577,0.013,61181.0,61180.0,0.15125513]
[1723370335777,0.127414,61181.0,61180.0,0.15125513]
[1723370335996,0.013,61181.0,61180.0,0.15125513]
[1723370336201,0.013,61181.0,61180.0,0.26567113]
[1723370337035,0.025,61181.0,61180.0,0.26567113]
[1723370340114,0.025,61181.0,61180.0,0.28701067]
[1723370340311,0.025,61181.0,61180.0,0.40142706]
[1723370340490,0.025,61181.0,61180.0,0.40142542]
[1723370340999,0.025,61181.0,61180.0,0.40142656]
[1723370341194,0.025,61181.0,61180.0,0.40142704]
[1723370341783,0.114407,61185.0,61180.0,0.40142704]
[1723370341981,0.114407,61185.0,61180.0,0.18507113]
[1723370341982,0.011,61181.0,61180.0,0.18507113]
[1723370342201,0.021,61181.0,61180.0,0.32082631]
[1723370342411,0.01,61181.0,61180.0,0.32082631]
[1723370342615,0.01,61181.0,61180.0,0.40202631]
[1723370342839,0.018,61181.0,61180.0,0.40202631]
[1723370343044,0.01,61181.0,61180.0,0.40202631]
[1723370343249,0.014,61181.0,61180.0,0.40202631]
[1723370343478,0.004,61181.0,61180.0,0.40202631]
[1723370344738,0.008,61181.0,61180.0,0.40202631]
[1723370345847,0.008,61181.0,61180.0,0.26627113]
[1723370346066,0.008,61181.0,61180.0,0.15185513]
[1723370347139,0.008,61181.0,61180.0,0.26627113]
[1723370347585,0.008,61181.0,61180.0,0.15185513]
[1723370347815,0.122414,61181.0,61180.0,0.15185513]
[1723370348037,0.008,61181.0,61180.0,0.15185513]
[1723370348240,0.122414,61181.0,61180.0,0.15185513]
[1723370348466,0.122414,61181.0,61180.0,0.07065513]
[1723370348689,0.008,61181.0,61180.0,0.07065513]
[1723370349845,0.008,61181.0,61180.0,0.15185513]
[1723370350527,0.008,61181.0,61180.0,0.26627113]
[1723370351110,0.008,61181.0,61180.0,0.15185513]
[1723370351937,0.008,61181.0,61180.0,0.26627113]
[1723370352132,0.008,61181.0,61180.0,0.49510313]
[1723370352334,0.008,61181.0,61180.0,0.40202984]
[1723370352722,0.008,61181.0,61180.0,0.85969384]
[1723370352916,0.008,61181.0,61180.0,0.8596886]
[1723370353125,0.008,61181.0,61180.0,0.8696886]
[1723370353328,0.008,61181.0,61180.0,0.86968466]
[1723370353533,0.008,61181.0,61180.0,1.12051666]
[1723370353848,0.008,61181.0,61180.0,1.18838331]
[1723370354052,0.008,61181.0,61180.0,1.35197345]
[1723370354465,0.004,61181.0,61180.0,1.16638331]
[1723370354668,0.000832,61186.0,61185.0,0.716935]
[1723370354871,0.000832,61186.0,61185.0,0.85268453]
[1723370355210,0.000832,61186.0,61185.0,0.86173938]
[1723370355876,0.000832,61186.0,61185.0,0.63292538]
[1723370356088,0.000832,61186.0,61185.0,0.8067403]
[1723370356287,0.000832,61186.0,61185.0,0.63292538]
[1723370356288,0.004832,61186.0,61185.0,0.63292538]
[1723370356701,0.004832,61186.0,61185.0,0.86173938]
[1723370357350,0.008832,61186.0,61185.0,0.86173938]
[1723370358390,0.008832,61186.0,61185.0,0.40411138]
[1723370359246,0.123237,61186.0,61185.0,0.00905485]
[1723370359479,0.008832,61186.0,61185.0,0.00905485]
[1723370359686,0.123237,61186.0,61183.0,0.0637]
[1723370359904,0.008832,61186.0,61185.0,0.00899793]
[1723370360328,0.123238,61186.0,61183.0,0.0637]
[1723370360542,0.119238,61186.0,61185.0,0.00899793]
[1723370360748,0.114407,61185.0,61184.0,0.00899901]
[1723370360952,0.114407,61185.0,61180.0,0.1153302]
[1723370361396,0.114407,61185.0,61181.0,0.00900228]
[1723370361610,0.294642,61186.0,61181.0,0.00900228]
[1723370361823,0.231814,61185.0,61181.0,0.00900228]
[1723370362075,0.11441,61183.0,61181.0,0.00900228]
[1723370362459,0.0781,61184.0,61181.0,0.00900228]
[1723370362700,0.117408,61185.0,61181.0,0.00900228]
[1723370362879,0.069832,61186.0,61181.0,0.00900228]
[1723370363078,0.004832,61186.0,61182.0,0.114411]
[1723370363316,0.119237,61186.0,61182.0,0.114411]
[1723370363519,0.115237,61186.0,61182.0,0.12341219]
[1723370363730,0.001,61184.0,61183.0,0.144]
[1723370363903,0.001,61184.0,61183.0,0.1530001]
[1723370364262,0.000832,61186.0,61183.0,0.28874817]
[1723370364464,0.000832,61186.0,61183.0,0.1530001]
[1723370364709,0.008832,61186.0,61183.0,0.1530001]
[1723370364932,0.003,61185.0,61184.0,0.144]
[1723370365115,0.008832,61186.0,61184.0,0.15299901]
[1723370365439,0.017832,61186.0,61185.0,0.114407]
[1723370365616,0.017832,61186.0,61185.0,0.343221]
[1723370365921,0.008832,61186.0,61185.0,0.35221893]
[1723370366126,0.008832,61186.0,61185.0,0.48795935]
[1723370366377,0.008832,61186.0,61185.0,0.63195935]
[1723370366610,0.008832,61186.0,61185.0,0.86077335]
[1723370366611,0.000832,61186.0,61185.0,0.86077335]
[1723370366838,0.017832,61186.0,61185.0,0.86077335]
[1723370367104,0.017832,61186.0,61185.0,0.49621893]
[1723370367303,0.017832,61186.0,61185.0,0.63195897]
[1723370367304,0.009832,61186.0,61185.0,0.63195897]
[1723370367513,0.009832,61186.0,61185.0,0.63196492]
[1723370367718,0.017832,61186.0,61185.0,0.63196492]
[1723370368142,0.000832,61186.0,61185.0,0.63196492]
[1723370368316,0.000832,61186.0,61185.0,0.49621893]
[1723370368317,0.007832,61186.0,61185.0,0.49621893]
[1723370368528,0.013832,61186.0,61185.0,0.86077615]
[1723370368738,0.006832,61186.0,61185.0,0.63196215]
[1723370368965,0.012832,61186.0,61185.0,0.63196215]
[1723370370483,0.012832,61186.0,61185.0,0.63196187]
[1723370370685,0.012832,61186.0,61185.0,0.63196189]
[1723370371888,0.012832,61186.0,61185.0,0.40314795]
[1723370372089,0.012832,61186.0,61185.0,0.26740493]
[1723370372410,0.006832,61186.0,61185.0,0.26740493]
[1723370372621,0.012832,61186.0,61185.0,0.26740493]
[1723370372823,0.006832,61186.0,61185.0,0.12340493]
[1723370373243,0.012832,61186.0,61185.0,0.12340493]
[1723370374632,0.012832,61186.0,61185.0,0.35221893]
[1723370375310,0.012832,61186.0,61185.0,0.63196308]
[1723370376526,0.012832,61186.0,61185.0,0.86077708]
[1723370376731,0.012832,61186.0,61185.0,0.63196308]
[1723370377799,0.012832,61186.0,61185.0,0.63196102]
[1723370378401,0.012832,61186.0,61185.0,0.87077502]
[1723370378637,0.012832,61186.0,61185.0,1.28340394]
[1723370378828,0.012832,61186.0,61185.0,1.35885996]
[1723370378968,0.012832,61186.0,61185.0,1.42672024]
[1723370379167,0.012832,61186.0,61185.0,1.45120559]
[1723370379627,0.006832,61186.0,61185.0,1.35326422]
[1723370379771,0.006832,61186.0,61185.0,1.45122937]
[1723370379968,0.010832,61186.0,61185.0,1.45214457]
[1723370380167,0.010832,61186.0,61185.0,1.35417942]
[1723370380388,0.010832,61186.0,61185.0,1.45214457]
[1723370380801,0.010832,61186.0,61185.0,1.45212046]
[1723370381003,0.004832,61186.0,61185.0,1.45212046]
[1723370381244,0.008832,61186.0,61185.0,1.45212046]
[1723370381470,0.008832,61186.0,61185.0,1.35217942]
[1723370381666,0.008832,61186.0,61185.0,0.89169022]
[1723370381865,0.008832,61186.0,61185.0,0.89167463]
[1723370382541,0.008832,61186.0,61185.0,0.94264093]
[1723370383046,0.008832,61186.0,61185.0,0.89367463]
[1723370383246,0.008832,61186.0,61185.0,1.12248863]
[1723370383943,0.008832,61186.0,61185.0,0.94263769]
[1723370384158,0.008832,61186.0,61185.0,1.17145169]
[1723370384287,0.008832,61186.0,61185.0,0.94263769]
[1723370384483,0.008832,61186.0,61185.0,1.16945169]
[1723370384673,0.008832,61186.0,61185.0,0.94063534]
[1723370385125,0.008832,61186.0,61185.0,0.89167463]
[1723370385331,0.008832,61186.0,61185.0,0.89167573]
[1723370386131,0.008832,61186.0,61185.0,1.33326536]
[1723370386433,0.008832,61186.0,61185.0,1.31326536]
[1723370386633,0.008832,61186.0,61185.0,1.33526536]
[1723370386899,0.008832,61186.0,61185.0,1.28630465]
[1723370387097,0.008832,61186.0,61185.0,1.26430465]
[1723370387305,0.008832,61186.0,61185.0,1.68090092]
[1723370387476,0.008832,61186.0,61185.0,3.32057763]
[1723370387908,0.008832,61186.0,61185.0,3.5697134]
[1723370388263,0.008832,61186.0,61185.0,3.40006512]
[1723370388485,0.008832,61186.0,61185.0,3.4228087]
[1723370388640,0.004832,61186.0,61185.0,3.29855506]
[1723370388845,0.005832,61186.0,61185.0,3.32055506]
[1723370389108,0.005832,61186.0,61185.0,3.29855506]
[1723370389404,0.000832,61186.0,61185.0,3.44532989]
[1723370389616,0.001832,61186.0,61185.0,3.29855451]
[1723370389766,0.002832,61186.0,61185.0,2.98146473]
[1723370390109,0.002832,61186.0,61185.0,3.30065706]
[1723370390310,0.001832,61186.0,61185.0,3.29865706]
[1723370390618,0.002832,61186.0,61185.0,3.32265706]
[1723370390818,0.001832,61186.0,61185.0,3.32265706]
[1723370391043,0.002832,61186.0,61185.0,3.32265706]
[1723370391255,0.002832,61186.0,61185.0,3.69824644]
[1723370391460,0.002832,61186.0,61185.0,3.46943244]
[1723370391677,0.002832,61186.0,61185.0,3.32297]
[1723370391878,0.002832,61186.0,61185.0,3.15335111]
[1723370392088,0.002832,61186.0,61185.0,3.00345751]
[1723370392291,0.002832,61186.0,61185.0,3.32296947]
[1723370392737,0.002832,61186.0,61185.0,3.32312344]
[1723370392942,0.002832,61186.0,61185.0,3.30112344]
[1723370393147,0.002832,61186.0,61185.0,3.65418263]
[1723370393353,0.002832,61186.0,61185.0,3.26666914]
[1723370393558,0.002832,61186.0,61185.0,3.63205367]
[1723370393767,0.002832,61186.0,61185.0,3.64186913]
[1723370393966,0.002832,61186.0,61185.0,3.65405235]
[1723370394171,0.002832,61186.0,61185.0,3.63205235]
[1723370394383,0.000832,61205.0,61204.0,0.9548]
[1723370394585,0.000832,61205.0,61204.0,1.25430384]
[1723370394787,0.000832,61205.0,61204.0,1.25429486]
[1723370394937,0.000832,61205.0,61204.0,1.28555227]
[1723370395343,0.000832,61205.0,61204.0,1.26355227]
[1723370395553,0.000832,61205.0,61204.0,1.14787233]
[1723370395807,0.009832,61205.0,61204.0,1.28555776]
[1723370395960,0.018832,61205.0,61204.0,1.28455776]
[1723370396170,0.018832,61205.0,61204.0,1.28655776]
[1723370396570,0.162632,61205.0,61204.0,0.26031384]
[1723370396746,0.162632,61205.0,61204.0,0.12462841]
[1723370396945,0.162632,61205.0,61204.0,0.35337141]
[1723370397577,0.162632,61205.0,61204.0,0.12462841]
[1723370397977,0.162632,61205.0,61204.0,0.01025741]
[1723370398769,0.162632,61205.0,61204.0,0.12462841]
[1723370399102,0.018832,61205.0,61204.0,0.58211441]
[1723370399512,0.018832,61205.0,61204.0,0.59211441]
[1723370399894,0.018832,61205.0,61204.0,0.58211441]
[1723370400879,0.018832,61205.0,61204.0,0.35337141]
[1723370401736,0.018832,61205.0,61204.0,0.59211441]
[1723370401952,0.018832,61205.0,61204.0,0.73631441]
[1723370402422,0.018832,61205.0,61204.0,1.10074759]
[1723370403388,0.018832,61205.0,61204.0,1.10274008]
[1723370403609,0.018832,61205.0,61204.0,1.09074008]
[1723370404076,0.018832,61205.0,61204.0,0.14594008]
[1723370404077,0.163032,61205.0,61204.0,0.14594008]
[1723370404274,0.163032,61205.0,61204.0,0.01025741]
[1723370405195,0.37149536,61205.0,61204.0,0.01025741]
[1723370405405,0.9488804,61205.0,61204.0,0.12462841]
[1723370406190,0.9488804,61205.0,61204.0,0.01025741]
[1723370406530,0.9488804,61205.0,61204.0,0.12462841]
[1723370407121,0.9488804,61205.0,61204.0,0.35337141]
[1723370407758,0.9488804,61205.0,61204.0,0.01025741]
[1723370408158,0.9488804,61205.0,61204.0,0.12462841]
[1723370409126,0.9488804,61205.0,61204.0,0.01025741]
[1723370409780,1.0632494,61205.0,61204.0,0.01025741]
[1723370410012,2.1307274,61205.0,61204.0,0.01025741]
[1723370410201,1.5207274,61205.0,61204.0,0.01025741]
[1723370410397,1.68454232,61205.0,61204.0,0.01025741]
[1723370411075,1.67554232,61205.0,61204.0,0.01025741]
[1723370411315,1.69893147,61205.0,61204.0,0.01025741]
[1723370412422,1.68993147,61205.0,61204.0,0.00925741]
[1723370413115,1.70393147,61205.0,61204.0,0.00925741]
[1723370413538,1.68993147,61205.0,61204.0,0.00925741]
[1723370413936,1.70393147,61205.0,61204.0,0.00925741]
[1723370417267,2.28393147,61205.0,61204.0,0.00925741]
[1723370417427,0.1442,61197.0,61192.0,0.114393]
[1723370417604,0.258584,61197.0,61193.0,0.114391]
[1723370417821,0.258585,61197.0,61191.0,0.228791]
[1723370418246,0.258585,61197.0,61192.0,0.114393]
[1723370419173,0.258585,61197.0,61192.0,0.001]
[1723370419174,0.114387,61196.0,61192.0,0.001]
[1723370419429,0.114392,61193.0,61192.0,0.001]
[1723370419647,0.11439,61194.0,61192.0,0.001]
[1723370419861,0.114392,61193.0,61192.0,0.001]
[1723370420070,0.114392,61193.0,61189.0,0.114399]
[1723370420295,0.228773,61196.0,61187.0,0.114402]
[1723370420296,0.114394,61192.0,61187.0,0.114402]
[1723370420497,0.002,61193.0,61188.0,0.114401]
[1723370420715,0.114394,61192.0,61186.0,0.5949192]
[1723370420920,0.083,61191.0,61188.0,0.1144]
[1723370421560,0.119387,61196.0,61187.0,0.228805]
[1723370421764,0.083,61194.0,61190.0,0.114396]
[1723370421975,0.002,61193.0,61191.0,0.00928909]
[1723370422379,0.004,61193.0,61191.0,0.00928909]
[1723370422630,0.004,61193.0,61190.0,0.114397]
[1723370422985,0.002,61193.0,61192.0,0.009288]
[1723370423203,0.002,61193.0,61190.0,0.114397]
[1723370423204,0.083,61194.0,61191.0,0.00929088]
[1723370423433,0.002,61193.0,61191.0,0.00929088]
[1723370423650,0.002,61193.0,61192.0,0.0092898]
[1723370423862,0.002,61193.0,61190.0,0.114397]
[1723370423863,0.19739,61194.0,61190.0,0.114397]
[1723370424075,0.002,61193.0,61192.0,0.0092898]
[1723370424287,0.002,61193.0,61190.0,0.114397]
[1723370424519,0.19739,61194.0,61192.0,0.0092898]
[1723370424743,0.002,61193.0,61191.0,0.00929088]
[1723370424945,0.002,61193.0,61190.0,0.114397]
[1723370425151,0.19739,61194.0,61190.0,0.114397]
[1723370425354,0.002,61193.0,61190.0,0.114397]
[1723370426211,0.19739,61194.0,61190.0,0.114397]
[1723370426428,0.19739,61194.0,61188.0,0.343202]
[1723370426640,0.20039,61194.0,61188.0,0.228802]
[1723370426848,0.002,61193.0,61188.0,0.228802]
[1723370427053,0.200391,61194.0,61187.0,0.228805]
[1723370427262,0.200391,61194.0,61189.0,0.114398]
[1723370427475,0.089,61194.0,61189.0,0.114398]
[1723370427688,0.20039,61194.0,61189.0,0.114398]
[1723370427913,0.114401,61188.0,61186.0,0.0009152]
[1723370428124,0.0776,61187.0,61186.0,0.0009152]
[1723370429585,0.0836,61187.0,61186.0,0.0019152]
[1723370430323,0.0896,61187.0,61186.0,0.0019152]
[1723370430557,0.126403,61187.0,61186.0,0.0019152]
[1723370430963,0.355209,61187.0,61186.0,0.0019152]
[1723370431784,0.126403,61187.0,61186.0,0.0019152]
[1723370432874,0.269703,61187.0,61186.0,0.0019152]
[1723370433115,1.69993592,61187.0,61186.0,0.0019152]
[1723370433929,1.79993592,61187.0,61186.0,0.0019152]
[1723370434296,1.79393592,61187.0,61186.0,0.0019152]
[1723370434536,1.80293592,61187.0,61186.0,0.0019152]
[1723370434760,1.79393592,61187.0,61186.0,0.0019152]
[1723370434991,1.78793592,61187.0,61186.0,0.0009152]
[1723370435219,1.79593592,61187.0,61186.0,0.0009152]
[1723370435683,1.78793592,61187.0,61186.0,0.0009152]
[1723370435886,2.01674192,61187.0,61186.0,0.0009152]
[1723370436033,2.09557208,61187.0,61186.0,0.0009152]
[1723370436240,2.10857208,61187.0,61186.0,0.0009152]
[1723370436812,2.09657208,61187.0,61186.0,0.0009152]
[1723370437012,2.19430008,61187.0,61186.0,0.0009152]
[1723370437212,2.19430818,61187.0,61186.0,0.0009152]
[1723370437418,2.20830818,61187.0,61186.0,0.0009152]
[1723370438126,2.08071979,61187.0,61186.0,0.0009152]
[1723370438324,2.11165924,61187.0,61186.0,0.0009152]
[1723370438905,2.09765924,61187.0,61186.0,0.0009152]
[1723370439109,2.10665924,61187.0,61186.0,0.0009152]
[1723370439410,2.10665924,61187.0,61162.0,0.4796]
[1723370439411,0.01,61183.0,61162.0,0.4796]
[1723370439614,0.01,61183.0,61161.0,0.0009152]
[1723370439615,0.486593,61172.0,61161.0,0.0009152]
[1723370439819,1.63813192,61172.0,61161.0,0.0009152]
[1723370439992,1.96699392,61172.0,61161.0,0.0009152]
[1723370441213,1.43699392,61172.0,61161.0,0.0009152]
[1723370441421,0.91356992,61172.0,61165.0,0.0795]
[1723370441626,0.83596992,61172.0,61165.0,0.0795]
[1723370441860,0.84544217,61172.0,61165.0,0.0795]
[1723370442258,0.59562725,61172.0,61170.0,0.0627]
[1723370442478,0.014,61172.0,61171.0,0.1919482]
[1723370442673,0.014,61172.0,61171.0,0.4935142]
[1723370442674,0.028,61172.0,61171.0,0.4935142]
[1723370442800,0.028,61172.0,61171.0,0.89779408]
[1723370443005,0.228825,61183.0,61171.0,0.31362908]
[1723370443222,0.114421,61178.0,61172.0,0.1393]
[1723370443435,0.11442,61178.0,61172.0,0.1393]
[1723370443632,0.11442,61178.0,61173.0,0.00953987]
[1723370443831,0.0779,61185.0,61172.0,0.1393]
[1723370443832,0.228831,61181.0,61172.0,0.1393]
[1723370444036,0.228831,61181.0,61174.0,0.00953878]
[1723370444382,0.114421,61178.0,61173.0,0.00953987]
[1723370444595,0.114423,61176.0,61175.0,0.00953769]
[1723370444829,0.228835,61180.0,61172.0,0.1393]
[1723370444830,0.114425,61175.0,61174.0,0.00953878]
[1723370445037,0.064,61184.0,61172.0,0.1393]
[1723370445246,0.114431,61172.0,61171.0,0.0009152]
[1723370445458,0.343293,61172.0,61171.0,0.0009152]
[1723370445912,0.572155,61172.0,61171.0,0.0009152]
[1723370446127,0.73596992,61172.0,61171.0,0.0009152]
[1723370446345,0.50710792,61172.0,61171.0,0.0009152]
[1723370446547,0.343293,61172.0,61171.0,0.0009152]
[1723370446948,0.350293,61172.0,61171.0,0.0009152]
[1723370447179,0.343293,61172.0,61171.0,0.0009152]
[1723370447595,0.350293,61172.0,61171.0,0.0009152]
[1723370448113,0.356293,61172.0,61171.0,0.0009152]
[1723370448532,0.350293,61172.0,61171.0,0.0009152]
[1723370448936,0.585155,61172.0,61171.0,0.0009152]
[1723370449137,0.663055,61172.0,61171.0,0.0009152]
[1723370449343,0.434193,61172.0,61171.0,0.0009152]
[1723370449762,0.356293,61172.0,61171.0,0.0009152]
[1723370452511,0.127431,61172.0,61171.0,0.0009152]
[1723370452723,0.127431,61172.0,61171.0,0.1402152]
[1723370452941,0.585155,61172.0,61171.0,0.01047326]
[1723370453227,0.82686992,61172.0,61171.0,0.0009152]
[1723370453906,1.81623939,61172.0,61171.0,0.0009152]
[1723370454127,2.16810139,61172.0,61171.0,0.0009152]
[1723370454799,2.16210139,61172.0,61171.0,0.0009152]
[1723370455006,0.57225,61162.0,61161.0,0.0009152]
[1723370455242,0.73606492,61162.0,61161.0,0.0009152]
[1723370455442,0.87796492,61162.0,61161.0,0.0009152]
[1723370455940,1.10686492,61162.0,61161.0,0.0009152]
[1723370456385,1.12086492,61162.0,61161.0,0.0009152]
[1723370456697,0.75006492,61162.0,61161.0,0.0009152]
[1723370456908,0.12845,61162.0,61161.0,0.0009152]
[1723370457116,0.014,61162.0,61161.0,0.0009152]
[1723370457313,0.014,61162.0,61161.0,0.0105311]
[1723370457650,0.014,61162.0,61161.0,0.1498311]
[1723370457872,0.028,61162.0,61161.0,0.1498311]
[1723370458075,0.14245,61162.0,61161.0,0.1498311]
[1723370458453,0.11445,61162.0,61161.0,0.1498311]
[1723370458655,0.12245,61162.0,61161.0,0.1498311]
[1723370459028,0.35135,61162.0,61161.0,0.0105311]
[1723370459227,1.29806492,61162.0,61161.0,0.0105311]
[1723370459447,1.37596492,61162.0,61161.0,0.0009152]
[1723370459717,1.59086492,61162.0,61161.0,0.0009152]
[1723370459924,1.66286492,61162.0,61161.0,0.0009152]
[1723370460296,2.04791462,61162.0,61161.0,0.0009152]
[1723370460494,1.21486492,61162.0,61161.0,0.0009152]
[1723370460789,1.20686492,61162.0,61161.0,0.0009152]
[1723370460924,1.14286492,61162.0,61161.0,0.0009152]
[1723370461308,1.15233931,61162.0,61161.0,0.0009152]
[1723370461514,1.16233931,61162.0,61161.0,0.0009152]
[1723370461760,1.17433931,61162.0,61161.0,0.0009152]
[1723370461960,0.12645,61162.0,61161.0,0.0009152]
[1723370462161,0.34335,61162.0,61161.0,0.0009152]
[1723370462336,0.35735,61162.0,61161.0,0.01059775]
[1723370462537,0.14245,61162.0,61161.0,0.01059775]
[1723370462857,0.12845,61162.0,61161.0,0.01059775]
[1723370463035,0.60025,61162.0,61161.0,0.01059775]
[1723370463236,0.12845,61162.0,61161.0,0.01059775]
[1723370463464,0.12845,61162.0,61161.0,0.0009152]
[1723370463663,0.35735,61162.0,61161.0,0.01059775]
[1723370463892,0.228883,61167.0,61161.0,0.01059775]
[1723370464075,0.114446,61164.0,61161.0,0.01059775]
[1723370464290,0.228883,61167.0,61161.0,0.01059775]
[1723370464291,0.12845,61162.0,61161.0,0.01059775]
[1723370464684,0.013,61162.0,61161.0,0.01059775]
[1723370465045,0.114441,61167.0,61162.0,0.0617]
[1723370465265,0.014,61167.0,61163.0,0.078]
[1723370465470,0.014,61164.0,61163.0,0.51611709]
[1723370465670,0.1161802,61171.0,61168.0,0.114438]
[1723370465671,0.0017472,61171.0,61168.0,0.114438]
[1723370465873,0.114437,61169.0,61168.0,0.0617]
[1723370466077,0.343311,61169.0,61168.0,0.0617]
[1723370466494,0.0017472,61171.0,61161.0,0.0009152]
[1723370466495,0.34335,61162.0,61161.0,0.0009152]
[1723370466695,0.11445,61162.0,61161.0,0.0009152]
[1723370466993,0.013,61167.0,61161.0,0.1406152]
[1723370467192,0.34335,61162.0,61161.0,0.0009152]
[1723370467725,0.11445,61162.0,61161.0,0.0009152]
[1723370468140,0.57225,61162.0,61161.0,0.0009152]
[1723370468546,0.34335,61162.0,61161.0,0.0009152]
[1723370468966,0.35335,61162.0,61161.0,0.0009152]
[1723370469183,0.34835,61162.0,61161.0,0.0009152]
[1723370469907,1.72266492,61162.0,61161.0,0.0009152]
[1723370470312,1.81766492,61162.0,61161.0,0.0009152]
[1723370470746,2.14697605,61162.0,61161.0,0.0009152]
[1723370470937,0.801188,61159.0,61158.0,0.009141]
[1723370471142,2.24812017,61159.0,61158.0,0.009141]
[1723370472153,2.26212017,61159.0,61158.0,0.009141]
[1723370472356,2.27612017,61159.0,61158.0,0.009141]
[1723370472557,2.04720917,61159.0,61158.0,0.009141]
[1723370472763,2.02420917,61159.0,61158.0,0.009141]
[1723370472968,1.95380292,61159.0,61158.0,0.009141]
[1723370474843,1.23380292,61159.0,61158.0,0.009141]
[1723370475790,1.21980292,61159.0,61158.0,0.009141]
[1723370475956,1.20580292,61159.0,61158.0,0.009141]
[1723370476188,1.14270292,61159.0,61158.0,0.009141]
[1723370476326,0.142455,61159.0,61158.0,0.009141]
[1723370476543,0.028,61159.0,61158.0,0.263298]
[1723370476746,0.028,61159.0,61158.0,0.34514446]
[1723370476945,0.028,61159.0,61158.0,0.58301972]
[1723370477153,0.028,61159.0,61158.0,0.50117326]
[1723370477609,0.0009152,61161.0,61160.0,0.34336]
[1723370477797,0.0009152,61161.0,61160.0,0.48306]
[1723370478028,0.0009152,61161.0,61160.0,0.49200498]
[1723370478258,0.0009152,61161.0,61160.0,0.85670424]
[1723370478493,0.0009152,61161.0,61160.0,0.85670146]
[1723370478719,0.0009152,61161.0,61160.0,0.72091198]
[1723370478994,0.0009152,61161.0,61160.0,0.8567011]
[1723370480065,0.0009152,61161.0,61160.0,0.72091198]
[1723370480267,0.0009152,61161.0,61160.0,0.85669728]
[1723370480473,0.0009152,61161.0,61160.0,0.62779028]
[1723370480684,0.0009152,61161.0,61160.0,0.49200498]
[1723370481257,0.0059152,61161.0,61160.0,0.49200498]
[1723370481665,0.0009152,61161.0,61160.0,0.49200498]
[1723370482204,0.0119152,61161.0,61160.0,0.49200498]
[1723370482539,0.0119152,61161.0,61160.0,1.03051894]
[1723370482777,0.0119152,61161.0,61160.0,1.02051894]
[1723370483143,0.0119152,61161.0,61160.0,1.03251894]
[1723370483405,0.0119152,61161.0,61160.0,1.28142594]
[1723370483612,0.0119152,61161.0,61160.0,2.54302594]
[1723370483883,0.0009152,61161.0,61160.0,2.54302594]
[1723370484087,0.0009152,61161.0,61160.0,2.52302594]
[1723370484297,0.0049152,61161.0,61160.0,2.29211894]
[1723370484440,0.0029152,61161.0,61160.0,2.29211894]
[1723370484634,0.0029152,61161.0,61160.0,2.29411894]
[1723370484836,0.0009152,61161.0,61160.0,2.52302594]
[1723370485621,0.0009152,61161.0,61160.0,2.52301147]
[1723370486086,0.0009152,61161.0,61160.0,2.52301222]
[1723370486320,0.0009152,61161.0,61160.0,2.28210522]
[1723370486577,0.0009152,61161.0,61160.0,2.29210522]
[1723370487306,0.0049152,61161.0,61160.0,2.51101222]
[1723370487549,0.0029152,61161.0,61160.0,2.28210857]
[1723370487785,0.0009152,61161.0,61160.0,2.28210857]
[1723370488032,0.0009152,61161.0,61160.0,2.29210857]
[1723370488268,0.0009152,61161.0,61160.0,2.28210857]
[1723370489236,0.0009152,61161.0,61160.0,1.02050857]
[1723370489480,0.0009152,61161.0,61160.0,1.0205082]
[1723370489722,0.0009152,61161.0,61160.0,0.85669328]
[1723370489959,0.0017472,61161.0,61160.0,0.85669328]
[1723370490724,0.000832,61161.0,61160.0,0.85669328]
[1723370491012,0.000832,61161.0,61160.0,0.86669328]
[1723370491279,0.002832,61161.0,61160.0,1.0505082]
[1723370491510,0.002832,61161.0,61160.0,1.2814152]
[1723370491763,0.004832,61161.0,61160.0,1.2814152]
[1723370491997,0.004832,61161.0,61160.0,1.2794152]
[1723370492295,0.000832,61161.0,61160.0,1.2794152]
[1723370492490,0.000832,61161.0,61160.0,1.2814152]
[1723370492782,0.000832,61161.0,61160.0,1.1456339]
[1723370493025,0.000832,61161.0,61160.0,1.25941057]
[1723370493311,0.000832,61161.0,61160.0,1.28141057]
[1723370494041,0.000832,61161.0,61160.0,1.51031757]
[1723370494289,0.000832,61161.0,61160.0,1.63331757]
[1723370494794,0.000832,61161.0,61160.0,1.70119767]